Cogmind - Beta 16 @@@ ROGUE MODE // 2025.11.17 @ 10:58:29 Player: omewwes Result: Destroyed by H7-1ZT(x) with Makeshift Spear Performance ------------- Evolutions (0) 0 Regions Visited (5) 1000 Robots Destroyed (31) 155 Value Destroyed (1059) 1059 Prototype IDs (7) 140 Alien Tech Used (0) 0 Bonus (947) 947 TOTAL SCORE: 3301 Bonus ------- Follower Combat Kills 147 Registered with UFD 300 Met Optimus in HQ 500 Cogmind --------- Core Integrity 0/250 Matter 300/300 Energy 41/275 System Corruption 0% Temperature Cool (0) Movement Rolling (115) Ox1 Location -7/Scraptown Parts ------- > --- POWER (1) -------- Deuterium Engine > --- PROPULSION (2) --- Armored Huge Wheel > --- UTILITY (2) ------ Large Storage Unit Enhanced Optical Array > --- WEAPON (2) ------- Junk Cannon > --- INVENTORY (15) --- Light Deuterium Engine VTOL Module Makeshift Flight Unit Power Amplifier Advanced Weight Redist. System Advanced Targeting Computer Core Analyzer Improved Utility Shielding Hardened Light Armor Plating Improved Light Armor Plating Layered Light Armor Plating Improved Shield Generator Voltaic Drivehammer (0/40) Peak State ------------ > --- POWER ------------ Deuterium Engine > --- PROPULSION ------- Armored Huge Wheel > --- UTILITY ---------- Large Storage Unit Enhanced Optical Array > --- WEAPON ----------- Junk Cannon > --- INVENTORY -------- Light Deuterium Engine VTOL Module Makeshift Flight Unit Power Amplifier Advanced Weight Redist. System Advanced Targeting Computer Core Analyzer Improved Utility Shielding Hardened Light Armor Plating Improved Light Armor Plating Layered Light Armor Plating Improved Shield Generator Voltaic Drivehammer [Rating: 34] Favorites ----------- Power Deuterium Engine Engine Deuterium Engine Power Core Light Nuclear Core Propulsion Aluminum Leg Treads Spiked Treads Leg Aluminum Leg Wheel Armored Huge Wheel Hover Unit Gravmag System Utility Large Storage Unit Device Scrap Suit Storage Large Storage Unit Processor Enhanced Optical Array Weapon Assault Rifle Energy Gun Beamcaster Energy Cannon Beam Cannon Ballistic Gun Assault Rifle Launcher Grenade Launcher Special Weapon Mining Laser Impact Weapon Great Maul Build | -11 -10 -10 -10 -7 -7 ------- Run | Yrd Mat Min Sub Rec Scr Slots Evolved . | . . . . . . Power . | . . . . . . Propulsion . | . . . . . . Utility . | . . . . . . Weapon . | . . . . . . Parts Attached 36 | 6 1 4 9 2 14 Power 7 | 1 . 1 2 . 3 Engine 6 | 1 . . 2 . 3 Core 1 | . . 1 . . . Reactor . | . . . . . . Propulsion 7 | 2 . . 3 1 1 Treads 1 | . . . 1 . . Leg 3 | 2 . . 1 . . Wheel 2 | . . . 1 . 1 Hover 1 | . . . . 1 . Flight . | . . . . . . Utility 8 | 1 1 2 . . 4 Device 4 | . 1 2 . . 1 Storage 3 | 1 . . . . 2 Processor 1 | . . . . . 1 Hackware . | . . . . . . Protection . | . . . . . . Artifact . | . . . . . . Weapon 14 | 2 . 1 4 1 6 Energy Gun 4 | . . 1 1 . 2 Energy Cannon 2 | . . . 1 1 . Ballistic Gun 4 | 2 . . . . 2 Ballistic Cannon . | . . . . . . Launcher 1 | . . . 1 . . Special Weapon 2 | . . . 1 . 1 Impact Weapon 1 | . . . . . 1 Slashing Weapon . | . . . . . . Piercing Weapon . | . . . . . . Special Melee Weapon . | . . . . . . Unidentified Prototypes 1 | . . . . . 1 Parts Lost 9 | . . . 8 1 . Power 2 | . . . 2 . . Propulsion 3 | . . . 3 . . Utility 1 | . . . . 1 . Weapon 3 | . . . 3 . . Highest Loss Streak 4 | . . . 4 1 . To Critical Strikes . | . . . . . . Average Backups 6 | . . 5 3 2 10 Power 1 | . . . . 1 1 Propulsion . | . . 1 . . . Utility 3 | . . 1 . 1 6 Weapon 1 | . . 1 2 . 1 Tool/Special . | . . . . . . Unused Backups 23 | . . 3 . . 20 Power . | . . . . . . Propulsion 5 | . . 1 . . 4 Utility 15 | . . 2 . . 13 Weapon 3 | . . . . . 3 Tool/Special . | . . . . . . Average Slot Usage (%) 76 | . 97 96 76 69 70 Engine 10 | . 14 . 7 13 13 Core 3 | . . 13 6 . . Treads 2 | . . . 1 14 . Leg 8 | . 27 28 15 . . Wheel 7 | . . . 5 . 13 Device 12 | . 13 14 14 12 10 Storage 7 | . 14 10 . . 12 Processor 1 | . . . . . 3 Energy Gun 7 | . . 9 14 4 5 Energy Cannon 5 | . . . 5 22 2 Ballistic Gun 4 | . 27 18 1 . 1 Special Weapon 1 | . . . 3 . 1 Impact Weapon 2 | . . . . . 4 Peak Build Rating 34 | 6 7 19 20 17 34 Average Rating 18 | 4 6 14 17 15 23 On Entrance 9 | . 6 7 19 15 10 Avg Prop Armor Cover (%) 19 | . . . 13 21 21 Naked Turns . | . . . . . . Heaviest Build 44 | 12 13 18 18 19 44 Greatest Support 28 | 20 20 20 20 20 28 Greatest Overweight (x) 5 | . 3 . 5 . 1 Average Overweight (x) . | . . . . . . Largest Inventory Capacity 15 | 8 8 8 5 5 15 Average Capacity 9 | 6 8 7 5 5 14 Most Carried 15 | . . 7 5 5 15 Average Carried 6 | . . 5 3 2 10 Final Capacity 15 | 8 8 5 5 5 15 Final Carried 13 | . . 4 2 4 13 Scrap Suit Usage (%) 21 | . . 22 81 . . Parts Cannibalized 4 | . . 2 2 . . Class Distribution -------------------- 60% | Mutant 29% | Scrapper 8% | Commander-Scrapper Dominant Class ---------------- Mutant | -10/Materials Mutant | -10/Mines Scrapper | -10/Subcaves Commander-Scrapper | -7/Recycling Mutant | -7/Scraptown Resources | -11 -10 -10 -10 -7 -7 ----------- Run | Yrd Mat Min Sub Rec Scr Matter Collected 972 | 208 83 232 101 168 180 Remotely . | . . . . . . Salvage Created 1248 | . 83 260 582 . 323 Parts 66 | . 7 15 40 . 4 Haulers Intercepted 1 | . 1 . . . . Recyclers Shooed 1 | . 1 . . . . Parts Field Recycled . | . . . . . . Retrieved Matter . | . . . . . . Parts Self-Destructed 3 | . . . 3 . . Prevented . | . . . . . . Parts Restored . | . . . . . . Kills | -11 -10 -10 -10 -7 -7 ------- Run | Yrd Mat Min Sub Rec Scr Combat Hostiles Destroyed 29 | . 1 7 16 . 5 Guns 14 | . 1 7 6 . . Cannons 5 | . . . 3 . 2 AOE 7 | . . . 7 . . Classes Destroyed 8 | . 2 2 2 . 2 Hauler 1 | . 1 . . . . Recycler 1 | . . 1 . . . Swarmer 5 | . . 5 . . . Grunt 3 | . 1 2 . . . Sentry 1 | . . . 1 . . Subdweller 15 | . . . 15 . . Ranger 1 | . . . . . 1 Scrapper 4 | . . . . . 4 Best Kill Streak 6 | . 1 2 6 . 5 Combat Bots Only 6 | . 1 2 6 . 5 Max Kills in Single Turn 2 | . 1 1 2 . 1 Gunslinging . | . . . . . . Exploded 2 | . . . 2 . . Melee . | . . . . . . Uniques/NPCs Destroyed . | . . . . . . Combat | -11 -10 -10 -10 -7 -7 -------- Run | Yrd Mat Min Sub Rec Scr Hostile Shots Fired 169 | . 4 28 89 24 24 Missed 50 | . . 7 24 10 9 Hits 119 | . 4 21 65 14 15 Melee 2 | . . . . . 2 Projectile 117 | . 4 21 65 14 13 AOE 3 | . . . 3 . . Critical Strikes 4 | . . 1 1 . 2 Damage Taken 1805 | . 43 191 1234 44 293 Core 267 | . 11 59 126 . 71 Absorbed by Shields 40 | . . . . 40 . Regen/Repaired (Parts) 31 | . . 18 13 . . Core Remaining (%) 100 | 100 . . . . . Volleys Fired 123 | . 10 19 76 2 16 Largest 2 | . 2 2 2 2 1 Hottest 160 | . 40 95 160 140 . Shots Fired 190 | . 20 38 112 4 16 Gun 116 | . 20 38 58 . . Cannon 25 | . . . 21 4 . Launcher 14 | . . . 14 . . Special 35 | . . . 19 . 16 Kinetic 48 | . 20 25 3 . . Thermal 112 | . . 13 95 4 . Explosive 14 | . . . 14 . . Electromagnetic . | . . . . . . Impact 16 | . . . . . 16 Robot Hit Streak 20 | . 4 6 14 17 20 Robot Miss Streak 3 | . 2 3 2 . 1 Penetration Max . | . . . . . . Secondary Targets 1 | . . . 1 . . Max Gunslinging Chain 1 | . . . 1 . . Shots Hit Robots 113 | . 12 21 63 4 13 Core Hits 46 | . 6 11 27 2 . Critical Kills . | . . . . . . Critical Parts Destroyed 6 | . . . 1 . 5 Critical Strikes 10 | . . . 5 . 5 Burn 3 | . . . 3 . . Destroy 2 | . . . 2 . . Smash 5 | . . . . . 5 Melee Attacks 1 | . . . . . 1 Impact 1 | . . . . . 1 Slashing . | . . . . . . Piercing . | . . . . . . Sneak Attacks . | . . . . . . Combat Hostiles . | . . . . . . Follow-up Attacks . | . . . . . . Damage Inflicted 3129 | . 139 303 1764 84 839 Guns 1414 | . 139 303 972 . . Cannons 224 | . . . 140 84 . Explosions 652 | . . . 652 . . Melee . | . . . . . . Ramming . | . . . . . . Kinetic 369 | . 139 197 33 . . Thermal 1269 | . . 106 1079 84 . Explosive 652 | . . . 652 . . Electromagnetic . | . . . . . . Impact 839 | . . . . . 839 Slashing . | . . . . . . Piercing . | . . . . . . Highest Corruption . | . . . . . . Average Corruption . | . . . . . . Corruption Purged . | . . . . . . Corruption Blocked . | . . . . . . Overload Shots . | . . . . . . Overflow Damage 366 | . . . 8 . 358 Projectiles 358 | . . . . . 358 Explosions 8 | . . . 8 . . Melee . | . . . . . . Knockbacks 5 | . . . . . 5 Impact 5 | . . . . . 5 Kinetic . | . . . . . . Secondary . | . . . . . . Self-Inflicted Damage 77 | . . . 77 . . Shots 2 | . . . 2 . . Rammed . | . . . . . . Targets Rammed . | . . . . . . Kicked . | . . . . . . Crushed . | . . . . . . Highest Temperature 214 | . . 156 214 69 18 Average Temperature 58 | . . 66 60 38 13 Received Heat Transfer 470 | . 24 66 222 12 146 Siege Activations . | . . . . . . Martial Activations . | . . . . . . Shielding Activations . | . . . . . . Robots Disrupted . | . . . . . . Combat Hostiles . | . . . . . . Robots Corrupted 3 | . . . . . 3 Combat Hostiles 3 | . . . . . 3 Parts Fried 9 | . . . . . 9 Impact Corruptions 8 | . . . . . 8 Robots Melted . | . . . . . . Combat Hostiles . | . . . . . . Parts Melted 3 | . . . 3 . . Heat Transferred 2290 | . . 185 1931 174 . Parts Sabotaged . | . . . . . . Parts Stolen . | . . . . . . Parts Stripped . | . . . . . . Power Chain Reactions . | . . . . . . Alert | -11 -10 -10 -10 -7 -7 ------- Run | Yrd Mat Min Sub Rec Scr Maximum Alert Level . | . . . . . . Low Security (%) 100 | 100 100 100 . 100 . Level 1 . | . . . . . . Level 2 . | . . . . . . Level 3 . | . . . . . . Level 4 . | . . . . . . Level 5 . | . . . . . . High Security . | . . . . . . Max Security . | . . . . . . Peak Influence 77 | . 20 77 . 74 . Initial 67 | . . . . 67 . Average 14 | . 3 10 . 23 . Influence Increases 629 | . 27 180 170 252 . Destroy 0b10 Robot/C 240 | . 20 140 20 60 . Destroy 0b10 Robot/NC 20 | . 5 5 . 10 . Destroy Leader 22 | . 2 20 . . . Allied During Kill 8 | . . . . 8 . Successful Hack 24 | . . . . 24 . Select Force Hacks 150 | . . . . 150 . Lose Combat Pursuer 165 | . . 15 150 . . Influence Decreases 629 | . 27 117 91 353 41 Entered New Map 150 | . . . 34 75 41 Time Decay 446 | . 27 117 57 245 . Lost Part 10 | . . . . 10 . Purge Threat 23 | . . . . 23 . Squads Dispatched . | . . . . . . Investigation . | . . . . . . Extermination . | . . . . . . Reinforcement . | . . . . . . Assault . | . . . . . . Garrison . | . . . . . . Intercept . | . . . . . . Searches Triggered . | . . . . . . Construction Impeded . | . . . . . . Haulers Reinforced . | . . . . . . Active Scanning Responses . | . . . . . . Cargo Convoy Interrupts . | . . . . . . Stealth | -11 -10 -10 -10 -7 -7 --------- Run | Yrd Mat Min Sub Rec Scr Distress Signals 2 | . . . . 2 . Communications Jammed . | . . . . . . Distress Signals . | . . . . . . Times Spotted 50 | . 3 8 25 4 10 Peak Tracking Total 6 | . 2 3 6 1 3 Tactical Retreats 6 | . . 1 5 . . Traps | -11 -10 -10 -10 -7 -7 ------- Run | Yrd Mat Min Sub Rec Scr Traps Triggered 2 | . 2 . . . . Indirectly . | . . . . . . Trap Hack Attempts . | . . . . . . Triggered . | . . . . . . Disarmed . | . . . . . . Reprogrammed . | . . . . . . Reused . | . . . . . . Traps Extracted . | . . . . . . Installed . | . . . . . . Triggered . | . . . . . . Machines | -11 -10 -10 -10 -7 -7 ---------- Run | Yrd Mat Min Sub Rec Scr Machines Disabled 2 | . . . 1 . 1 Max in Single Turn 1 | . . . 1 . 1 Machines Repaired . | . . . . . . Machines Dismantled . | . . . . . . Machines Sabotaged . | . . . . . . Overloaded Fab Kills . | . . . . . . Hacking | -11 -10 -10 -10 -7 -7 --------- Run | Yrd Mat Min Sub Rec Scr Machines Accessed 15 | . . . . 9 6 Terminals 3 | . . . . 3 . Fabricators . | . . . . . . Repair Stations . | . . . . . . Recycling Units 6 | . . . . 6 . Scanalyzers . | . . . . . . Garrison Access . | . . . . . . Total Hacks 49 | . . . . 14 35 Successful 46 | . . . . 11 35 Failed 3 | . . . . 3 . Catastrophic . | . . . . . . Database Lockouts . | . . . . . . Manual 12 | . . . . 12 . Terminals 7 | . . . . 7 . Fabricators . | . . . . . . Repair Stations . | . . . . . . Recycling Units 7 | . . . . 7 . Scanalyzers . | . . . . . . Garrison Access . | . . . . . . Terminal Hacks 40 | . . . . 5 35 Record 34 | . . . . . 34 Unreport Threat 1 | . . . . 1 . Locate Traps 1 | . . . . 1 . Registered Components 1 | . . . . 1 . Zone Layout 2 | . . . . 2 . Proto ID Catalog 1 | . . . . . 1 Fabricator Hacks . | . . . . . . Repair Station Hacks . | . . . . . . Recycling Unit Hacks . | . . . . . . Scanalyzer . | . . . . . . Garrison Access Hacks . | . . . . . . Unauthorized Hacks 5 | . . . . 5 . Terminals . | . . . . . . Fabricators . | . . . . . . Repair Stations . | . . . . . . Recycling Units 5 | . . . . 5 . Tunnel 5 | . . . . 5 . Scanalyzers . | . . . . . . Garrison Access . | . . . . . . Data Cores Recovered . | . . . . . . Used . | . . . . . . Hacking Detections 3 | . . . . 3 . Full Trace Events . | . . . . . . Feedback Events . | . . . . . . Feedback Blocked . | . . . . . . Robot Schematics Acquired . | . . . . . . Robots Built . | . . . . . . Authchips . | . . . . . . Time . | . . . . . . Total Robot Build Rating . | . . . . . . Part Schematics Acquired . | . . . . . . Parts Built . | . . . . . . Authchips . | . . . . . . Time . | . . . . . . Total Part Build Rating . | . . . . . . Part Studies Acquired . | . . . . . . Parts Repaired . | . . . . . . Time . | . . . . . . Parts Recycled . | . . . . . . Recycled Matter . | . . . . . . Retrieved Matter . | . . . . . . Retrieved Components . | . . . . . . Parts Scanalyzed . | . . . . . . Part Schematics Acquired . | . . . . . . Parts Damaged . | . . . . . . Bothacking | -11 -10 -10 -10 -7 -7 ------------ Run | Yrd Mat Min Sub Rec Scr Used RIF Installer . | . . . . . . Robots Hacked . | . . . . . . Non-combat . | . . . . . . Combat . | . . . . . . Robot Hacks Applied . | . . . . . . Relay Couplers Released . | . . . . . . Fabnet Peak Effective % . | . . . . . . Robots Rewired 7 | . . . . 7 . Allies Hacked . | . . . . . . Hacks Repelled . | . . . . . . Allies | -11 -10 -10 -10 -7 -7 -------- Run | Yrd Mat Min Sub Rec Scr Total Allies 8 | . . 1 . 7 . Largest Group 5 | . . 1 . 5 . Highest-Rated Group 124 | . . 31 . 124 . Highest-Rated Ally 40 | . . 31 . 40 . Total Orders 1 | . . . . 1 . DROP 1 | . . . . 1 . Ally Attacks 21 | . . . . 21 . Total Damage 632 | . . . . 632 . Kills 5 | . . . . 5 . Allies Corrupted . | . . . . . . Allies Melted 3 | . . . . . 3 Intel | -11 -10 -10 -10 -7 -7 ------- Run | Yrd Mat Min Sub Rec Scr Active Infowar (turns) 2801 | . . . . . 2801 Optics 656 | . . . . . 656 Sensors 2145 | . . . . . 2145 Robot Analysis Total . | . . . . . . Derelict Logs Recovered 4 | . . 2 1 . 1 Drone Launches . | . . . . . . Drone Recoveries . | . . . . . . Exploration | -11 -10 -10 -10 -7 -7 ------------- Run | Yrd Mat Min Sub Rec Scr Turns Passed 6496 | 61 276 813 1482 890 2974 Spaces Moved 4652 | 48 190 614 1010 505 2285 Core 33 | 7 1 . 25 . . Treads 452 | . . . . 452 . Legs 1427 | 41 189 614 583 . . Wheels 2493 | . . . 402 . 2091 Hover 247 | . . . . 53 194 Flight . | . . . . . . Fastest Speed 50 | 50 120 120 110 80 80 Average Speed 118 | 109 121 120 118 151 111 Slowest Speed 300 | 120 200 120 300 160 115 Overloaded Moves . | . . . . . . Propulsion Burnouts . | . . . . . . Robots Hopped . | . . . . . . Potential Cave-ins 6 | . . . 6 . . Cave-ins Triggered . | . . . . . . Exploration Rate (%) 63 | 4 31 98 60 97 91 Regions Visited 5 Branch Regions 4 Pre-discovered Areas 6 | . . . 1 5 . Known Exits Taken . | . . . . . . Unknown Exits Taken 5 | 1 1 1 1 1 . Scrap Searched 14 | . . 2 1 . 11 Spaces Dug . | . . . . . . Terrain Destroyed 90 | . . . 87 . 3 Melee . | . . . . . . Projectile 5 | . . . 2 . 3 AOE 85 | . . . 85 . . Terrain Rammed . | . . . . . . Walls Destroyed . | . . . . . . Machines Disabled . | . . . . . . Actions | -11 -10 -10 -10 -7 -7 --------- Run | Yrd Mat Min Sub Rec Scr Total 5394 | 53 213 653 1144 626 2705 Wait 410 | . 8 3 34 32 333 Move 4647 | 47 189 613 1009 504 2285 Hop . | . . . . . . Pick Up 37 | . . 7 6 . 24 Fast Attach 27 | 6 6 2 3 2 8 Attach 8 | . . . 5 . 3 Detach 12 | . . 1 2 3 6 Swap 12 | . . 2 4 . 6 Drop 35 | . . 6 5 1 23 Fire 123 | . 10 19 76 2 16 Melee 1 | . . . . . 1 Ram . | . . . . . . Kick . | . . . . . . Crush . | . . . . . . Escape Stasis . | . . . . . . Rewire 82 | . . . . 82 . Trap . | . . . . . . Miscellaneous . | . . . . . . Route ------- -11/Scrapyard -10/Materials -10/Mines (discovered 3 exits: [*Mat x2] / [*Sub]) -10/Subcaves -7/Recycling (discovered 2 exits: [*Fac] / *Scr) -7/Scraptown (discovered 2 exits: [*Fac x2]) History --------- Turn | Location | Event 5 | -11/Scrapyard | Discovered new exit (range 15) 62 | -11/Scrapyard | Entered Materials 312 | -10/Materials | Discovered new exit (range 11) 334 | -10/Materials | Build established: Mutant 338 | -10/Materials | Entered Mines 341 | -10/Mines | Met a Derelict bent on vengeance 488 | -10/Mines | Discovered new exit (range 12) 507 | -10/Mines | Learned Materials stockpile data 632 | -10/Mines | Learned 8 Materials zone layouts 790 | -10/Mines | Discovered new exit (range 13) 799 | -10/Mines | Received a Mining Laser from a helpful Derelict 962 | -10/Mines | Found a Scrap Suit stashed away for nefarious purposes 966 | -10/Mines | Found Scrap Suit 1137 | -10/Mines | Discovered new exit (range 10) 1151 | -10/Mines | Entered Subcaves 1183 | -10/Subcaves | Learned location of Zion (-6) 1260 | -10/Subcaves | Build established: Scrapper 1643 | -10/Subcaves | Shifting Twisted Machinery released Sub. Machine Gun 1709 | -10/Subcaves | Shifting Twisted Machinery released Sub. Optics 1973 | -10/Subcaves | Core integrity fell below 50% 2008 | -10/Subcaves | Lost 4 parts (1p2n1w) 2303 | -10/Subcaves | Shifting Twisted Machinery released Mak. Light Armor Plating 2553 | -10/Subcaves | Ambushed by Subdweller buried in earth 2557 | -10/Subcaves | Ambushed by Subdweller buried in earth 2559 | -10/Subcaves | Ambushed by Subdweller buried in earth 2563 | -10/Subcaves | Ambushed by Subdweller buried in earth 2565 | -10/Subcaves | Ambushed by Subdweller buried in earth 2630 | -10/Subcaves | Discovered new exit (range 2) 2633 | -10/Subcaves | Entered Recycling 3168 | -7/Recycling | Build established: Commander-Scrapper 3274 | -7/Recycling | Discovered new exit (range 16) 3503 | -7/Recycling | Scanned before Scraplab entrance 3515 | -7/Recycling | Entered Scraplab 3522 | -7/Recycling | Discovered new exit (range 3) 3523 | -7/Recycling | Entered Scraptown 3815 | -7/Scraptown | Build established: Mutant 3855 | -7/Scraptown | Visited TADAMA 3883 | -7/Scraptown | Visited Assassins FH 3905 | -7/Scraptown | Heard Great Nut preacher, LISTEN AND RECITE! 4040 | -7/Scraptown | Discovered new exit (range 11) 4122 | -7/Scraptown | Scanned Subdweller tech in exchange for log data 4126 | -7/Scraptown | Learned Factory stockpile data 4177 | -7/Scraptown | Visited Fellowship of the Rings 4185 | -7/Scraptown | Visited Cave Peace 4250 | -7/Scraptown | Visited Cyclists 4272 | -7/Scraptown | Visited Symbiants 4315 | -7/Scraptown | Visited Bundlers 4685 | -7/Scraptown | Visited UFD Registry 4690 | -7/Scraptown | Registered with UFD as "Beamforce" 4720 | -7/Scraptown | Visited Junk Cannon Lab 4729 | -7/Scraptown | Found Prototype Special Weapon 4729 | -7/Scraptown | Identified Junk Cannon 4762 | -7/Scraptown | Visited Abandonware Association 4803 | -7/Scraptown | Learned abandonware demo "REPAIR.EXE" 4803 | -7/Scraptown | Learned abandonware demo "REBOOT5.EXE" 4838 | -7/Scraptown | Visited Research Penetration Think Tank 5024 | -7/Scraptown | Visited DA-N13 Charitable Foundation 5035 | -7/Scraptown | Found DCF Scrap (31 items) 5070 | -7/Scraptown | Visited Science Guys 5122 | -7/Scraptown | Visited Supply Room 5165 | -7/Scraptown | Visited Modified Component R&D 5235 | -7/Scraptown | Visited Junk Repository 5381 | -7/Scraptown | Discovered new exit (range 5) 6018 | -7/Scraptown | Met Optimus 6018 | -7/Scraptown | Accepted into 0bPrime 6418 | -7/Scraptown | Civil war broke out across Scraptown 6423 | -7/Scraptown | Found Voltaic Drivehammer 6491 | -7/Scraptown | Core integrity fell below 20% 6497 | -7/Scraptown | Destroyed by H7-1ZT(x) with Makeshift Spear Last Messages --------------- 06467_ Ovr. Titanium Leg fried. 06469_ Junk Cannon collects and crushes Ovr. Barrage Gun (+1 shot). 06470_ Junk Cannon collects and crushes Ovr. Treads (+2 shots). 06484_ RK-UU0(j) suffers critical hit (Smash). 06484_ Destroyed Scrap Suit. 06484_ RK-UU0(j) system corrupted by crushing effect. 06484_ RK-UU0(j) knocked back. 06485_ RK-UU0(j) IFF system glitched. 06486_ RK-UU0(j) suffers critical hit (Smash). 06486_ Destroyed Ovr. Titanium Leg. 06486_ Destroyed Mak. Salvage Targeting Computer. 06486_ RK-UU0(j) system corrupted by crushing effect. 06487_ RK-UU0(j) system terminally corrupted. 06487_ Ovr. Titanium Leg fried. 06487_ Mak. Microdissipator Network fried. 06487_ Ovr. Pulse Rifle fried. 06487_ Bolt penetrates Wall. 06487_ Penetrated by Bolt. 06490_ Critical hit (Burn: +50). 06492_ Penetrated by Bolt. Map ----- +----------------------------------------------------+ | | | | | | | | | | | | | | | | | | | | | ?????????????????????????????????????????????????? | | ?????????????????????????????????????????????????? | | ?????????????????????????????????????????????????? | | ?????????????????????????????????????????????????? | | ?????????????????????????????????????????????????? | | ?????????????????????????????????????????????????? | | ?????????????????????????????????????????????????? | | ?????????????????????????????????????????????????? | | ?????????????????????????????????????????????????? | | ?????????????????????????????????????????????????? | | ?????????????????????????????????????????????????? | | ?????????????????????????????????###?????????????? | | ??????????????????????##????????"""#?????????????? | | ###?###############???#;##??????"=*#?????????????? | | """?#"""##""|##"""#??##! ##????!!<*#?????????????? | | "" ##"" ##""|##!!"####%!=@####"!%[%###???????????? | | "" ![=%=x!=![!!!%%!"#???????????? | | [[[!! =%*[!%[!=#????????????? | | ####################;#%* #;;;#######????????????? | | ???????????????????##;# %######??????????????????? | | ????????????????????### #############???????????? | | ??????????????????????# #"""""""""""#???????????? | | ??????????????????????# #""""" X """#???????????? | | ??????????????????????# #""" """"#???????????? | | ??????????????????????# #" ! ""#???????????? | | ???????????##########?# #""" /""""#???????????? | | ########?###""/""" #?# #"""" ""#???????????? | | # #! #?!##"!/"" #?#!%#"" &#???????????? | | # # #]!##*" ""#?#! #"" "" "&#???????????? | | # # # [##" ""#?# #"" "" "&#???????????? | | # ## #?# # "#???????????? | | # ## #?# #" #???????????? | | ##### ########### ###?# ## ##########???????????? | | ##### ########### ##### ## ##???#####???????????? | | """"" """"""""""" """"" " #???"""""???????????? | | "#?? " "" "#?????????? | | = #?? " "" "#?????????? | | !%% "#?" "#?????????? | | ![!!= "##" """"#?????????? | | [%!! " "#?????????? | +----------------------------------------------------+ Best States ------------- Heat Dissipation 39 Energy Generation 15 Energy Capacity 275 Matter Stores 300 Matter Capacity 300 Sight Range 22 Robot Scan Range 15 Terrain Scan Density 10 Evasion (%) 55 Recoil Reduction 1 Item Schematics ----------------- None Robot Schematics ------------------ None Fabricated ------------ Nothing Repaired ---------- Nothing Studied --------- None Alien Tech Used ----------------- None Achievements -------------- Do Not Disturb Challenges ------------ None Game ------ Seed CompositeNeutronGun Manual? 0 Play Time 00:47:21 Cumulative 108.1 hours Start 2025.11.16 @ 11:39:56 End 2025.11.17 @ 10:58:29 Sessions 5 Manual Loads 0 Difficulty Rogue Special Mode None Game No. 93 Rogue 93 Adventurer 0 Explorer 0 Win Type - Total 1 Types 1/0/0/0/0/0/0/0/0/0 Lore% 57 Gallery% 61 Achievement% 46 Wizard Run 0 Options --------- Layout 0 ASCII 0 Keyboard 1 Movement Vi Keybinds 0 Fullscreen 1 Font 18/SmallcapsGlow Map View 76x50 Zoom Use 0% Tactical HUD 1 Map Filters NONE Filters NONE Steam 1 RUN: efb437d9-a51b-487a-a9e3-5131cbb952e7